fUST/lending_fUST_20251017
["ID","MTS","AMOUNT","RATE_DAILY","PERIOD"]
[391538494,1760636758825,-632.41227532,0.00034205,2]
[391538495,1760636758844,-209.52841335,0.00034239,2]
[391538496,1760636758867,-360.0,0.00034473,2]
[391538497,1760636758898,-661.60053418,0.00034805,2]
[391538498,1760636758925,-460.0,0.00035021,2]
[391538499,1760636758943,-690.78879304,0.00035405,2]
[391538500,1760636758963,-233.57270019,0.00035462,2]
[391538501,1760636758982,-300.0,0.00035609,7]
[391538502,1760636759001,-719.9770519,0.00036005,2]
[391538503,1760636759021,-783.0,0.00036366,2]
[391538504,1760636759041,-749.16531076,0.00036605,2]
[391538505,1760636759060,-326.0,0.00036668,3]
[391538506,1760636759079,-291.88258861,0.00037205,2]
[391538507,1760636759103,-600.0,0.0003834,90]
[391538508,1760636759122,-450.0,0.00038348,12]
[391538509,1760636759142,-1097.0,0.00039138,5]
[391538510,1760636759161,-358.066391,0.00039654,2]
[391538511,1760636759179,-600.0,0.00041088,17]
[391538512,1760636759196,-2688.2171,0.00041444,7]
[391538513,1760636759214,-5016.05657,0.00042,120]
[391538514,1760636759232,-1536.0,0.00042121,5]
[391538515,1760636759256,-720.0,0.00042174,90]
[391538516,1760636759276,-1477.65,0.00042491,2]
[391538517,1760636759295,-976.77554311,0.000426,2]
[391538518,1760636759313,-24599.05407107,0.000426,2]
[391538519,1760636759331,-741.41,0.00042654,10]
[391538520,1760636759353,-617.85,0.00042654,10]
[391538521,1760636759373,-541.78,0.00042664,30]
[391538522,1760636759391,-451.48,0.00042664,30]
[391538523,1760636759410,-376.24,0.00042664,30]
[391538524,1760636759428,-313.53,0.00042664,30]
[391538525,1760636759447,-261.28,0.00042664,30]
[391538526,1760636759466,-217.73,0.00042664,30]
[391538527,1760636759485,-181.44,0.00042664,30]
[391538528,1760636759506,-151.2,0.00042664,30]
[391538529,1760636759529,-756.03,0.00042664,30]
[391538530,1760636759549,-13690.75058728,0.00042665,3]
[391538531,1760636825091,-185.02478817,0.000314,2]
[391538532,1760636825115,-319.42367611,0.000314,2]
[391538533,1760636825135,-185.02478817,0.000317,2]
[391538534,1760636825155,-319.42367611,0.000317,2]
[391538535,1760636825173,-185.02478817,0.00032,2]
[391538536,1760636825192,-319.42367611,0.00032,2]
[391538537,1760636825212,-100.29594931,0.000323,2]
[391538538,1760636846088,-160.0,0.000317,2]
[391538539,1760636846108,-84.72883886,0.000323,2]
[391538540,1760636846129,-158.87971367,0.000323,2]
[391538541,1760636850092,-160.54396244,0.000323,2]
[391538542,1760636850116,-185.02478817,0.000327,2]
[391538543,1760636850137,-319.42367611,0.000327,2]
[391538544,1760636850159,-400.0,0.0003284,2]
[391538545,1760636850178,-1200.0,0.0003284,3]
[391538546,1760636850201,-300.0,0.00033497,30]
[391538547,1760636850229,-300.0,0.00033497,30]
[391538548,1760636850253,-300.0,0.00033497,30]
[391538549,1760636850273,-300.0,0.00033497,30]
[391538550,1760636850295,-300.0,0.00033497,30]
[391538551,1760636850317,-300.0,0.00033497,30]
[391538552,1760636850339,-300.0,0.00033497,30]
[391538553,1760636850361,-300.0,0.00033497,30]
[391538554,1760636850386,-300.0,0.00033497,30]
[391538555,1760636850410,-300.0,0.00033497,30]
[391538556,1760636850434,-300.0,0.00033497,30]
[391538557,1760636850458,-86.84043477,0.00033497,30]
[391538558,1760636942636,500.0,0.0003,2]
[391538600,1760637032123,-153.25,0.00030101,15]
[391538602,1760637032137,-400.0,0.0003284,2]
[391538604,1760637032152,-4017.74998882,0.00032841,60]
[391538606,1760637032178,-709.4838733,0.00032841,60]
[391538611,1760637032369,-179.29348246,0.00032841,60]
[391538625,1760637037967,-105.47265542,0.00032841,60]
[391538626,1760637037977,-254.98,0.00032841,40]
[391538627,1760637037987,-902.0,0.00032841,120]
[391538628,1760637037997,-799.11030502,0.00032841,120]
[391538629,1760637038006,-175.614,0.00033925,37]
[391538630,1760637038016,-266.0,0.00035291,2]
[391538631,1760637038026,-156.0598852,0.00041222,2]
[391538632,1760637038035,-1995.4165384,0.00041246,2]
[391538633,1760637038048,-1163.4433597,0.00041246,2]
[391538634,1760637038059,-204.37611271,0.00042583,28]
[391538635,1760637038069,-781.42043448,0.000426,2]
[391538636,1760637038079,-1244.91598592,0.000426,2]
[391538637,1760637038090,-609.77865654,0.000426,2]
[391538638,1760637038102,-14544.67473826,0.000426,2]
[391538639,1760637038111,-502.62006462,0.00042673,10]
[391538640,1760637038120,-578.05,0.00042674,10]
[391538641,1760637038130,-481.71,0.00042674,10]
[391538642,1760637038141,-23323.62099641,0.00042674,3]
[391538643,1760637038159,-1004.38909799,0.00042674,3]
[391538644,1760637038175,-1619.38572393,0.00042674,3]
[391538645,1760637038187,-39976.65054117,0.00042674,3]
[391538646,1760637038196,-306.83014945,0.00042683,31]
[391538647,1760637038206,-512.57027966,0.00042683,31]
[391538648,1760637038216,-535.79665883,0.00042683,2]
[391538649,1760637038226,-380.88371516,0.00042683,31]
[391538650,1760637038236,-328.66130203,0.00042683,31]
[391538651,1760637038247,-370000.0,0.00042684,2]
[391538652,1760637038257,-942.86,0.000427,14]
[391538653,1760637038267,-363.88,0.000427,7]
[391538654,1760637038276,-289.43505362,0.00042797,2]
[391538655,1760637038286,-330.78291843,0.00042797,2]
[391538656,1760637038295,-516.84831004,0.00042797,2]
[391538657,1760637038304,-1298.57,0.000428,14]
[391538658,1760637038314,-10987.3410599,0.00042963,3]
[391538659,1760637038324,-500.0,0.00042973,10]
[391538660,1760637038333,-500.0,0.00042973,10]
[391538661,1760637038343,-500.0,0.00042973,10]
[391538662,1760637038352,-500.0,0.00042973,10]
[391538663,1760637038362,-500.0,0.00042973,10]
[391538664,1760637038372,-503.41227825,0.00042973,10]
[391538665,1760637038381,-409.17640987,0.00042973,5]
[391538666,1760637038391,-500.0,0.00042973,7]
[391538667,1760637038403,-500.0,0.00042973,10]
[391538668,1760637038413,-21974.6821198,0.0004298,3]
[391538669,1760637038422,-100000.0,0.0004299,2]
[391538670,1760637038432,-1099.87742813,0.00043368,85]
[391538671,1760637038442,-21974.6821198,0.00043434,3]
[391538672,1760637038452,-94534.1638,0.00043444,30]
[391538673,1760637038462,-500.0,0.00043473,2]
[391538674,1760637038471,-1000.0,0.00043521,10]
[391538675,1760637038481,-1000.0,0.00043521,10]
[391538676,1760637038490,-1000.0,0.00043521,10]
[391538677,1760637038500,-176.89510933,0.00043521,10]
[391538678,1760637038509,-1000.0,0.00043521,7]
[391538679,1760637038519,-1004.27827385,0.00043521,10]
[391538680,1760637038528,-600.0,0.00043527,90]
[391538681,1760637038538,-1000.0,0.000438,90]
[391538682,1760637038548,-781.42043445,0.00043826,2]
[391538683,1760637038558,-590.27193026,0.00043828,22]
[391538684,1760637038567,-10000.0,0.00044,120]
[391538685,1760637038577,-500.0,0.00044021,2]
[391538686,1760637038586,-1500.0,0.00044068,10]
[391538687,1760637038596,-1571.58180012,0.00044068,10]
[391538688,1760637038606,-686.85776587,0.00044068,10]
[391538689,1760637038615,-1500.0,0.00044068,7]
[391538690,1760637038626,-1058.0978319,0.00044616,10]
[391538691,1760637038636,-1380.45006111,0.00044669,2]
[391538692,1760637038646,-16399.3693807,0.00044972,2]
[391538693,1760637038658,-153.8666966,0.0004499,2]
[391538694,1760637038669,-207.5736846,0.0004499,2]
[391538695,1760637038679,-1203.9278941,0.0004499,2]
[391538696,1760637038688,-3277.4709101,0.0004499,2]
[391538697,1760637038698,-763.8034141,0.0004499,2]
[391538698,1760637038707,-10987.3410599,0.0004499,3]
[391538699,1760637038716,-5000.0,0.00045,120]
[391538700,1760637038726,-1000.0,0.00045,120]
[391538701,1760637038735,-8000.0,0.00045,30]
[391538702,1760637038745,-781.42043445,0.00045052,2]
[391538703,1760637038754,-1380.45006111,0.00045123,2]
[391538704,1760637038764,-1380.45006111,0.00045209,2]
[391538705,1760637038773,-1000.0,0.000454,120]
[391538706,1760637038782,-1000.0,0.000454,120]
[391538707,1760637038792,-1000.0,0.000454,120]
[391538708,1760637038801,-1000.0,0.000454,120]
[391538709,1760637038811,-1000.0,0.000454,120]
[391538710,1760637038819,-1000.0,0.000454,120]
[391538711,1760637038829,-151.0,0.000454,24]
[391538712,1760637038837,-76911.3874194,0.00045434,3]
[391538713,1760637038850,-78778.4698,0.00045444,30]
[391538714,1760637038859,-233066.1697,0.00045444,30]
[391538715,1760637038868,-250.0,0.00045453,2]
[391538716,1760637038878,-250.0,0.00045453,2]
[391538717,1760637038887,-500.0,0.00045473,10]
[391538718,1760637038895,-500.0,0.00045473,10]
[391538719,1760637038907,-1380.45006111,0.00045503,2]
[391538720,1760637038917,-151.0,0.000457,24]
[391538721,1760637038926,-1380.45006111,0.00045942,2]
[391538722,1760637038936,-1000.0,0.00046,120]
[391538723,1760637038949,-13432.0,0.00046,120]
[391538724,1760637038959,-52910.34111675,0.00046,120]
[391538749,1760637040086,-23725.42261724,0.00046,120]
[391538761,1760637040199,-7700.33920005,0.00046,120]
[391538971,1760637043370,-21712.0,0.00046,120]
[391538972,1760637044513,-11016.94400718,0.00046,120]
[391538973,1760637044524,-132934.35305783,0.00046,120]
[391538974,1760637044533,-177.72481321,0.00046,29]
[391538975,1760637044542,-1030.35195132,0.00046021,10]
[391538976,1760637044551,-1016.1817,0.00046021,10]
[391538977,1760637044560,-1298.57,0.000461,14]
[391538978,1760637044570,-358.066391,0.00046143,2]
[391538979,1760637044579,-1380.45006111,0.00046273,2]
[391538980,1760637044588,-781.42043445,0.00046278,2]
[391538981,1760637044598,-1380.45006111,0.00046372,2]
[391538982,1760637044607,-1458.84,0.00046486,2]
[391538983,1760637044616,-151.0,0.000465,26]
[391538984,1760637044626,-500.0,0.00046575,120]
[391538985,1760637044635,-500.0,0.00046575,120]
[391538986,1760637044644,-500.0,0.00046575,120]
[391538987,1760637044655,-500.0,0.00046575,120]
[391538988,1760637044665,-500.0,0.00046575,120]
[391538989,1760637044674,-500.0,0.00046575,120]
[391538990,1760637044684,-500.0,0.00046575,120]
[391538991,1760637044693,-500.0,0.00046575,120]
[391538992,1760637044702,-500.0,0.00046575,120]
[391538993,1760637044711,-500.0,0.00046575,120]
[391538994,1760637044721,-500.0,0.00046575,120]
[391538995,1760637044730,-500.0,0.00046575,120]
[391538996,1760637044739,-500.0,0.00046575,120]
[391538997,1760637044748,-500.0,0.00046575,120]
[391538998,1760637044757,-500.0,0.00046575,120]
[391538999,1760637044766,-500.0,0.00046575,120]
[391539000,1760637044776,-500.0,0.00046575,120]
[391539001,1760637044785,-500.0,0.00046575,120]
[391539002,1760637044794,-500.0,0.00046575,120]
[391539003,1760637044803,-500.0,0.00046575,120]
[391539004,1760637044811,-500.0,0.00046575,120]
[391539005,1760637044820,-500.0,0.00046575,120]
[391539006,1760637044830,-500.0,0.00046575,120]
[391539007,1760637044839,-500.0,0.00046575,120]
[391539008,1760637044847,-500.0,0.00046575,120]
[391539009,1760637044857,-500.0,0.00046575,120]
[391539010,1760637044866,-500.0,0.00046575,120]
[391539011,1760637044875,-500.0,0.00046575,120]
[391539012,1760637044883,-500.0,0.00046575,120]
[391539013,1760637044893,-500.0,0.00046575,120]
[391539014,1760637044903,-500.0,0.00046575,120]
[391539015,1760637044914,-500.0,0.00046575,120]
[391539016,1760637044923,-500.0,0.00046575,120]
[391539017,1760637044935,-500.0,0.00046575,120]
[391539018,1760637044945,-500.0,0.00046575,120]
[391539019,1760637044954,-500.0,0.00046575,120]
[391539020,1760637044963,-500.0,0.00046575,120]
[391539021,1760637044973,-500.0,0.00046575,120]
[391539022,1760637044982,-500.0,0.00046575,120]
[391539023,1760637044991,-499.94,0.00046575,120]
[391539024,1760637045001,-1380.45006117,0.00046622,2]
[391539025,1760637045011,-7760.0654984,0.00046683,2]
[391539026,1760637045022,-5000.0,0.00047,120]
[391539027,1760637045031,-151.0,0.00047,26]
[391539028,1760637045040,-1000.0,0.00047,120]
[391539029,1760637045048,-7705.18,0.00047144,46]
[391539030,1760637045058,-16399.3693807,0.00047344,2]
[391539031,1760637045067,-1000.0,0.000474,120]
[391539032,1760637045076,-1000.0,0.000474,120]
[391539033,1760637045085,-1000.0,0.000474,120]
[391539034,1760637045094,-1000.0,0.000474,120]
[391539035,1760637045103,-1000.0,0.000474,120]
[391539036,1760637045112,-7519.14544671,0.00047404,2]
[391539037,1760637045121,-10363.49441594,0.00047444,30]
[391539052,1760637152191,500.0,0.00027995,7]
[391539053,1760637205563,300.0,0.00028,2]
[391539054,1760637212792,154.04943,0.00029238,20]
[391539055,1760637216617,300.0,0.00028,2]
[391539056,1760637227566,300.0,0.00028,2]
[391539057,1760637238150,300.0,0.00028,2]
[391539064,1760637690443,60.07064101,0.00025205,2]
[391539065,1760637690466,134.33685107,0.00025205,2]
[391539066,1760637690814,223.56861589,0.00025805,2]
[391539067,1760637691186,252.72973971,0.00026405,2]
[391539068,1760637691555,281.89086352,0.00027005,2]
[391539069,1760637691953,311.05198733,0.00027605,2]
[391539070,1760637692298,340.21311114,0.00028205,2]
[391539071,1760637692721,369.37423495,0.00028805,2]
[391539072,1760637693667,398.53535877,0.00029405,2]
[391539074,1760637810605,153.476626,0.00029238,20]
[391539075,1760637819287,153.476626,0.00028653,20]
[391539076,1760637819805,154.571145,0.00029238,20]
[391539077,1760637820085,154.571145,0.00028653,20]
[391539079,1760637900838,666.0,0.00029981,2]
[391539080,1760637927958,151.21272606,0.00029921,2]
[391539081,1760638026103,-205.29149132,0.00030001,2]
[391539082,1760638026124,-427.69648258,0.00030005,2]
[391539083,1760638026142,-1710.4895132,0.0003026,2]
[391539084,1760638026161,-456.85760639,0.00030605,2]
[391539085,1760638026180,-486.0187302,0.00031205,2]
[391539086,1760638026207,-179.65865214,0.00031315,7]
[391539087,1760638026233,-400.0,0.00031495,2]
[391539088,1760638026257,-300.0,0.00031496,3]
[391539089,1760638026279,-1600.0,0.00031496,3]
[391539090,1760638026441,-1433.58137941,0.00031497,3]
[391539091,1760638050095,-300.0,0.00031497,3]
[391539092,1760638050116,-45.79201028,0.00031499,7]
[391539093,1760638119306,417.15472785,0.00029,2]
[391539170,1760638232378,-153.20798972,0.00031499,7]
[391539173,1760638232391,-210.0,0.00031499,3]
[391539175,1760638232401,-187.0,0.00031499,3]
[391539177,1760638232410,-400.0,0.00031499,3]
[391539179,1760638232419,-1600.0,0.00031499,3]
[391539181,1760638232429,-400.0,0.00031499,2]
[391539183,1760638232439,-211.02650042,0.000315,2]
[391539185,1760638232449,-237.29042741,0.000315,2]
[391539187,1760638232458,-194.02089483,0.000315,2]
[391539189,1760638232467,-175.38030047,0.000315,2]
[391539191,1760638232479,-1243.13529549,0.000315,2]
[391539193,1760638232488,-3409.01448694,0.000315,2]
[391539195,1760638232498,-417.15472785,0.00031508,2]
[391539197,1760638232508,-402.59971063,0.00031509,2]
[391539199,1760638232517,-178.82909863,0.00031705,2]
[391539201,1760638232526,-211.02650042,0.000318,2]
[391539203,1760638232535,-201.84607628,0.000318,2]
[391539205,1760638232548,-35.44435113,0.000318,2]
[391539207,1760638232557,-194.02089483,0.000318,2]
[391539209,1760638232566,-175.38030047,0.000318,2]
[391539211,1760638232577,-1243.13529549,0.000318,2]
[391539215,1760638232586,-3409.01448694,0.000318,2]
[391539241,1760638232739,-333.19799344,0.000318,2]
[391539244,1760638232752,-2371.62436685,0.000318,2]
[391539246,1760638232764,-47295.17763971,0.000318,2]
[391539248,1760638232774,-515.17985401,0.00031805,2]
[391539250,1760638232783,-211.02650042,0.000321,2]
[391539252,1760638232792,-194.02089483,0.000321,2]
[391539254,1760638232802,-175.38030047,0.000321,2]
[391539256,1760638232812,-1243.13529549,0.000321,2]
[391539258,1760638232822,-3409.01448694,0.000321,2]
[391539260,1760638232831,-1000.0,0.000322,10]
[391539262,1760638232840,-544.34097783,0.00032405,2]
[391539264,1760638232849,-211.02650042,0.000325,2]
[391539266,1760638232861,-194.02089483,0.000325,2]
[391539267,1760638232871,-1243.13529549,0.000325,2]
[391539270,1760638232880,-3409.01448694,0.000325,2]
[391539271,1760638232890,-1000.0,0.000327,10]
[391539274,1760638232900,-16841.01810033,0.00032712,3]
[391539276,1760638232910,-415.39,0.0003279,10]
[391539278,1760638232919,-211.02650042,0.000328,2]
[391539279,1760638232928,-194.02089483,0.000328,2]
[391539282,1760638232938,-1243.13529549,0.000328,2]
[391539283,1760638232948,-3409.01448694,0.000328,2]
[391539286,1760638232958,-571.85,0.00032802,3]
[391539287,1760638232967,-285.92,0.00032802,3]
[391539289,1760638232977,-498.47,0.00032802,10]
[391539292,1760638232987,-857.8,0.00032802,3]
[391539293,1760638232996,-1999.0,0.00032811,2]
[391539295,1760638233006,-500.0,0.00032811,2]
[391539297,1760638233016,-500.0,0.00032811,2]
[391539298,1760638233027,-500.0,0.00032811,2]
[391539299,1760638233037,-500.0,0.00032811,2]
[391539300,1760638233048,-500.0,0.00032811,2]
[391539301,1760638233058,-267.3428605,0.00032811,2]
[391539302,1760638233068,-500.0,0.00032811,2]
[391539303,1760638233078,-159.91944295,0.00032811,2]
[391539304,1760638233088,-500.0,0.00032811,2]
[391539305,1760638233098,-500.0,0.00032811,2]
[391539306,1760638233107,-500.0,0.00032811,2]
[391539307,1760638233121,-500.0,0.00032811,2]
[391539308,1760638233131,-500.0,0.00032811,2]
[391539309,1760638233141,-500.0,0.00032811,2]
[391539310,1760638233152,-500.0,0.00032811,2]
[391539311,1760638233162,-500.0,0.00032811,2]
[391539312,1760638233172,-500.0,0.00032811,2]
[391539313,1760638233183,-500.0,0.00032811,2]
[391539314,1760638233192,-508.19401681,0.00032811,2]
[391539315,1760638233202,-500.0,0.00032811,2]
[391539316,1760638233212,-500.0,0.00032811,2]
[391539317,1760638233221,-211.67015602,0.00032811,2]
[391539318,1760638233234,-421.50104066,0.00032811,2]
[391539319,1760638233243,-289.46728682,0.00032811,2]
[391539320,1760638233252,-216.95629848,0.00032811,2]
[391539321,1760638233263,-41268.45128951,0.00032812,40]
[391539322,1760638233276,-3536.79133021,0.00032812,40]
[391539323,1760638233287,-5136.42971169,0.00032812,40]
[391539324,1760638233302,-56752.32766859,0.00032812,40]
[391539325,1760638233312,-23637.28703394,0.00032812,30]
[391539326,1760638233324,-644.12745233,0.00032812,30]
[391539447,1760638238537,-346.16,0.0003279,10]
[391539448,1760638238548,-92107.69551373,0.00032812,30]
[391539449,1760638238558,-356.55115888,0.00032873,5]
[391539450,1760638238569,-500.0,0.00032873,5]
[391539451,1760638238579,-500.0,0.00032873,2]
[391539452,1760638238589,-500.0,0.00032873,5]
[391539453,1760638238598,-500.0,0.00032873,3]
[391539454,1760638238608,-500.0,0.00032873,5]
[391539455,1760638238620,-500.0,0.00032873,5]
[391539456,1760638238630,-30007.4560312,0.00032873,2]
[391539457,1760638238640,-835.54,0.00032876,3]
[391539458,1760638238650,-417.77,0.00032876,3]
[391539460,1760638238660,-208.88,0.00032876,3]
[391539462,1760638238669,-626.68,0.00032876,3]
[391539463,1760638238679,-692.22,0.00032876,3]
[391539464,1760638238689,-346.11,0.00032876,3]
[391539465,1760638238699,-173.06,0.00032876,3]
[391539466,1760638238708,-519.19,0.00032876,3]
[391539467,1760638238719,-500.0,0.00032893,2]
[391539468,1760638238729,-456.1309674,0.00032899,7]
[391539469,1760638238739,-209.36311742,0.00032899,7]
[391539470,1760638238750,-971.08,0.000329,14]
[391539471,1760638238761,-1041.54,0.000329,2]
[391539472,1760638238771,-573.50210164,0.00033005,2]
[391539473,1760638238782,-1243.13529549,0.000331,2]
[391539474,1760638238792,-3409.01448694,0.000331,2]
[391539475,1760638238801,-1243.13529549,0.000334,2]
[391539476,1760638238811,-3409.01448694,0.000334,2]
[391539477,1760638238821,-1000.0,0.00033421,5]
[391539478,1760638238830,-1000.0,0.00033421,2]
[391539479,1760638238840,-500.0,0.00033421,5]
[391539480,1760638238859,-1000.0,0.00033421,5]
[391539481,1760638238874,-1000.0,0.00033421,5]
[391539482,1760638238884,-600.0,0.00033486,30]
[391539483,1760638238894,-300.0,0.00033497,30]
[391539484,1760638238904,-300.0,0.00033497,30]
[391539485,1760638238914,-300.0,0.00033497,30]
[391539486,1760638238924,-300.0,0.00033497,30]
[391539487,1760638238933,-300.0,0.00033497,30]
[391539488,1760638238943,-300.0,0.00033497,30]
[391539489,1760638238953,-300.0,0.00033497,30]
[391539490,1760638238963,-300.0,0.00033497,30]
[391539491,1760638238973,-300.0,0.00033497,30]
[391539492,1760638238983,-300.0,0.00033497,30]
[391539493,1760638238993,-300.0,0.00033497,30]
[391539494,1760638239002,-300.0,0.00033497,30]
[391539495,1760638239012,-300.0,0.00033497,30]
[391539496,1760638239022,-300.0,0.00033497,30]
[391539497,1760638239032,-300.0,0.00033497,30]
[391539498,1760638239042,-602.66322545,0.00033605,2]
[391539499,1760638239052,-1243.13529549,0.000338,2]
[391539500,1760638239065,-3409.01448694,0.000338,2]
[391539501,1760638239078,-187.0,0.00033896,3]
[391539502,1760638239091,-560.0,0.00033896,2]
[391539503,1760638239103,-315.95923357,0.00033968,5]
[391539504,1760638239116,-1500.0,0.00033968,5]
[391539505,1760638239128,-2240.0,0.00034037,3]
[391539506,1760638239140,-151.0,0.00034038,7]
[391539507,1760638239151,-151.0,0.00034038,7]
[391539508,1760638239161,-151.0,0.00034038,7]
[391539509,1760638239173,-151.0,0.00034038,7]
[391539510,1760638239185,-151.0,0.00034038,7]
[391539511,1760638239196,-151.0,0.00034038,7]
[391539512,1760638239207,-151.0,0.00034038,7]
[391539513,1760638239220,-151.0,0.00034038,7]
[391539514,1760638239232,-198.0,0.00034093,7]
[391539515,1760638239244,-198.0,0.00034093,7]
[391539516,1760638239256,-151.0,0.00034093,7]
[391539517,1760638239268,-198.0,0.00034093,7]
[391539518,1760638239279,-198.0,0.00034093,7]
[391539519,1760638239292,-151.0,0.00034093,7]
[391539520,1760638239306,-1243.13529549,0.000341,2]
[391539521,1760638239318,-3409.01448694,0.000341,2]
[391539522,1760638239330,-151.0,0.00034148,7]
[391539523,1760638239342,-198.0,0.00034148,7]
[391539524,1760638239354,-1143.7,0.00034172,3]
[391539525,1760638239366,-571.84,0.00034172,3]
[391539526,1760638239377,-1999.0,0.00034181,120]
[391539527,1760638239389,-151.0,0.00034202,7]
[391539528,1760638239402,-631.82434926,0.00034205,2]
[391539529,1760638239415,-30007.4560312,0.00034236,2]
[391539530,1760638239426,-1671.08,0.00034246,3]
[391539531,1760638239437,-835.54,0.00034246,3]
[391539532,1760638239447,-417.76,0.00034246,3]
[391539533,1760638239459,-1384.44,0.00034246,3]
[391539534,1760638239471,-692.22,0.00034246,3]
[391539535,1760638239483,-346.12,0.00034246,3]
[391539536,1760638239494,-151.0,0.00034257,7]
[391539537,1760638239507,-198.0,0.00034312,7]
[391539538,1760638239518,-160.0,0.00034312,2]
[391539539,1760638239528,-1243.13529549,0.000345,2]
[391539540,1760638239537,-3409.01448694,0.000345,2]
[391539541,1760638239547,-2000.0,0.00034516,5]
[391539542,1760638239559,-660.98547308,0.00034805,2]
[391539543,1760638239571,-260.0,0.0003486,2]
[391539544,1760638239581,-15359.6631842,0.00034957,2]
[391539545,1760638239592,-2500.0,0.00035064,5]
[391539546,1760638239605,-690.14659689,0.00035405,2]
[391539547,1760638239618,-360.0,0.00035408,2]
[391539548,1760638239629,-1999.0,0.00035551,120]
[391539549,1760638239641,-1041.54,0.000357,2]
[391539550,1760638239652,-460.0,0.00035956,2]
[391539551,1760638239662,-100000.0,0.0003599,2]
[391539552,1760638239674,-719.3077207,0.00036005,2]
[391539553,1760638239685,-783.0,0.00036476,2]
[391539555,1760638239696,-560.0,0.00036504,2]
[391539557,1760638239707,-748.46884451,0.00036605,2]
[391539558,1760638239718,-3135.0,0.00036781,3]
[391539560,1760638239730,-720.0,0.00036835,30]
[391539561,1760638239741,-1999.0,0.00036921,120]
[391539562,1760638239752,-500.0,0.00036973,5]
[391539563,1760638239762,-30007.4560312,0.00036985,3]
[391539564,1760638239773,-660.0,0.00037052,2]
[391539565,1760638239783,-291.61123812,0.00037205,2]
[391539566,1760638239793,-30007.4560312,0.00037434,3]
[391539567,1760638239805,-58943.619,0.00037444,7]
[391539568,1760638239816,-500.0,0.00037473,5]
[391539569,1760638239827,-500.0,0.00037473,5]
[391539570,1760638239840,-500.0,0.00037473,5]
[391539571,1760638239853,-500.0,0.00037473,5]
[391539572,1760638239866,-500.0,0.00037473,5]
[391539573,1760638239877,-760.0,0.000376,2]
[391539575,1760638239888,-60014.9120625,0.0003798,3]
[391539577,1760638239898,-1000.0,0.00038021,5]
[391539579,1760638239908,-1000.0,0.00038021,5]
[391539581,1760638239919,-1000.0,0.00038021,5]
[391539583,1760638239929,-860.0,0.00038148,2]
[391539585,1760638239939,-1796.07,0.00038291,120]
[391539587,1760638239949,-1500.0,0.00038568,5]
[391539589,1760638239959,-1500.0,0.00038568,5]
[391539591,1760638239971,-530.35195132,0.00038568,5]
[391539593,1760638239981,-960.0,0.00038696,2]
[391539595,1760638239991,-2000.0,0.00039116,5]
[391539597,1760638240001,-1511.74842182,0.00039116,5]
[391539599,1760638240011,-178.82909857,0.00039225,2]
[391539601,1760638240021,-220.0,0.00039244,2]
[391539604,1760638240032,-1097.0,0.00039253,5]
[391539606,1760638240042,-60014.9120625,0.00039434,3]
[391539608,1760638240053,-78778.4698,0.00039444,7]
[391539610,1760638240068,-161.69365501,0.00039473,5]
[391539612,1760638240079,-2500.0,0.00039664,5]
[391539614,1760638240090,-4390.0,0.00039745,5]
[391539616,1760638240100,-1000.0,0.0004,120]
[391539619,1760638240110,-1000.0,0.0004,120]
[391539621,1760638240122,-1000.0,0.0004,120]
[391539623,1760638240133,-1521.416458,0.00040212,5]
[391539625,1760638240144,-864.0,0.00040518,90]